Cogmind - Beta 17.1 @@@ ROGUE MODE // 2026.09.11 @ 13:04:05 Player: Stelbot7872 Result: Smashed by cave-in Performance ------------- Evolutions (0) 0 Regions Visited (1) 200 Robots Destroyed (8) 40 Value Destroyed (43) 43 Prototype IDs (0) 0 Alien Tech Used (0) 0 Bonus (0) 0 TOTAL SCORE: 283 Bonus ------- None Cogmind --------- Core Integrity 0/250 Matter 242/300 Energy 100/100 System Corruption 29% Temperature Cool (0) Movement Core (50) Location -10/Materials Parts ------- > --- POWER (1) -------- (None) > --- PROPULSION (2) --- (None) > --- UTILITY (2) ------ (None) > --- WEAPON (2) ------- (None) > --- INVENTORY (5) ---- (None) Peak State ------------ > --- POWER ------------ Ion Engine > --- PROPULSION ------- Wheel Wheel > --- UTILITY ---------- Improved Terrain Scanner Improved Terrain Scanner > --- WEAPON ----------- Assault Rifle Assault Rifle > --- INVENTORY -------- Wheel Wheel [Rating: 11] Favorites ----------- Power Ion Engine Engine Ion Engine Propulsion Wheel Wheel Wheel Utility Improved Terrain Scanner Device Improved Terrain Scanner Storage Small Storage Unit Weapon Assault Rifle Ballistic Gun Assault Rifle Special Weapon Mining Laser Build | -11 -10 ------- Run | Yrd Mat Slots Evolved . | . . Power . | . . Propulsion . | . . Utility . | . . Weapon . | . . Parts Attached 14 | 12 2 Power 1 | 1 . Engine 1 | 1 . Core . | . . Reactor . | . . Propulsion 4 | 2 2 Treads . | . . Leg . | . . Wheel 4 | 2 2 Hover . | . . Flight . | . . Utility 5 | 5 . Device 3 | 3 . Storage 2 | 2 . Processor . | . . Hackware . | . . Protection . | . . Artifact . | . . Weapon 4 | 4 . Energy Gun . | . . Energy Cannon . | . . Ballistic Gun 2 | 2 . Ballistic Cannon . | . . Launcher . | . . Special Weapon 2 | 2 . Impact Weapon . | . . Slashing Weapon . | . . Piercing Weapon . | . . Special Melee Weapon . | . . Unidentified Prototypes . | . . Parts Lost 11 | . 11 Power 1 | . 1 Propulsion 4 | . 4 Utility 3 | . 3 Weapon 3 | . 3 Highest Loss Streak 6 | . 6 To Critical Strikes . | . . Average Backups 2 | 3 2 Power . | . . Propulsion 1 | 1 1 Utility . | . . Weapon . | . . Tool/Special . | . . Unused Backups 3 | 2 1 Power . | . . Propulsion 3 | 2 1 Utility . | . . Weapon . | . . Tool/Special . | . . Average Slot Usage (%) 50 | . 50 Engine 5 | . 5 Wheel 8 | . 8 Device 9 | . 9 Ballistic Gun 24 | . 24 Special Weapon 2 | . 2 Peak Build Rating 11 | 11 9 Average Rating 5 | 6 4 On Entrance 4 | . 9 Avg Prop Armor Cover (%) . | . . Naked Turns 19 | . 19 Heaviest Build 15 | 15 11 Greatest Support 20 | 20 20 Greatest Overweight (x) . | . . Average Overweight (x) . | . . Largest Inventory Capacity 8 | 8 5 Average Capacity 5 | 6 5 Most Carried 8 | 8 5 Average Carried 2 | 3 1 Final Capacity 5 | 5 5 Final Carried 5 | 5 . Class Distribution -------------------- 100% | Mutant Dominant Class ---------------- Mutant | -10/Materials Resources | -11 -10 ----------- Run | Yrd Mat Matter Collected 428 | 428 . Remotely . | . . Salvage Created 216 | 216 . Parts 19 | 19 . Haulers Intercepted . | . . Recyclers Shooed . | . . Parts Field Recycled . | . . Retrieved Matter . | . . Parts Self-Destructed . | . . Prevented . | . . Parts Restored . | . . Kills | -11 -10 ------- Run | Yrd Mat Combat Hostiles Destroyed . | . . Classes Destroyed 3 | 3 . Worker 2 | 2 . Tunneler 5 | 5 . Recycler 1 | 1 . Best Kill Streak 5 | 5 . Combat Bots Only . | . . Max Kills in Single Turn 1 | 1 . Gunslinging . | . . Exploded . | . . Melee . | . . Uniques/NPCs Destroyed . | . . Combat | -11 -10 -------- Run | Yrd Mat Hostile Shots Fired . | . . Missed . | . . Hits . | . . Damage Taken 927 | . 927 Core 270 | . 270 Absorbed by Shields . | . . Core Remaining (%) 100 | 100 . Volleys Fired 36 | 23 13 Largest 2 | 2 1 Hottest 200 | 200 100 Shots Fired 59 | 46 13 Gun 32 | 32 . Cannon . | . . Launcher . | . . Special 27 | 14 13 Kinetic 32 | 32 . Thermal 27 | 14 13 Explosive . | . . Electromagnetic . | . . Robot Hit Streak 5 | 5 . Robot Miss Streak 3 | 3 . Penetration Max . | . . Secondary Targets . | . . Shots Hit Robots 19 | 19 . Core Hits 8 | 8 . Critical Kills 1 | 1 . Critical Parts Destroyed . | . . Critical Strikes 1 | 1 . Destroy 1 | 1 . Melee Attacks . | . . Impact . | . . Slashing . | . . Piercing . | . . Sneak Attacks . | . . Combat Hostiles . | . . Follow-up Attacks . | . . Damage Inflicted 253 | 253 . Guns 253 | 253 . Cannons . | . . Explosions . | . . Melee . | . . Ramming . | . . Kinetic 253 | 253 . Thermal . | . . Explosive . | . . Electromagnetic . | . . Impact . | . . Slashing . | . . Piercing . | . . Highest Corruption 29 | . 29 Average Corruption 16 | . 16 Corruption Purged . | . . Corruption Blocked . | . . Effects 16 | . 16 Message Errors 8 | . 8 Matter Fused 2 | . 2 Heat Flow Errors 4 | . 4 Energy Discharges 1 | . 1 Data Loss (major) 1 | . 1 Overload Shots . | . . Overflow Damage . | . . Projectiles . | . . Explosions . | . . Melee . | . . Knockbacks . | . . Impact . | . . Kinetic . | . . Secondary . | . . Self-Inflicted Damage . | . . Shots . | . . Rammed . | . . Targets Rammed . | . . Kicked . | . . Crushed . | . . Highest Temperature 236 | 236 230 Average Temperature 85 | 98 75 Received Heat Transfer . | . . Siege Activations . | . . Martial Activations . | . . Shielding Activations . | . . Robots Disrupted . | . . Combat Hostiles . | . . Robots Corrupted . | . . Combat Hostiles . | . . Parts Fried . | . . Impact Corruptions . | . . Robots Melted . | . . Combat Hostiles . | . . Parts Melted . | . . Heat Transferred . | . . Parts Sabotaged . | . . Parts Stolen . | . . Parts Stripped . | . . Power Chain Reactions . | . . Alert | -11 -10 ------- Run | Yrd Mat Maximum Alert Level . | . . Low Security (%) 100 | 100 100 Level 1 . | . . Level 2 . | . . Level 3 . | . . Level 4 . | . . Level 5 . | . . High Security . | . . Max Security . | . . Peak Influence 15 | 15 2 Initial . | . . Average 1 | 2 . Influence Increases 45 | 40 5 Destroy 0b10 Robot/NC 40 | 40 . Destroy Structure 5 | . 5 Influence Decreases 45 | 40 5 Time Decay 45 | 40 5 Squads Dispatched . | . . Investigation . | . . Extermination . | . . Reinforcement . | . . Assault . | . . Garrison . | . . Intercept . | . . Searches Triggered . | . . Construction Impeded . | . . Haulers Reinforced . | . . Active Scanning Responses . | . . Cargo Convoy Interrupts . | . . Stealth | -11 -10 --------- Run | Yrd Mat Distress Signals . | . . Communications Jammed . | . . Distress Signals . | . . Times Spotted . | . . Peak Tracking Total . | . . Tactical Retreats . | . . Traps | -11 -10 ------- Run | Yrd Mat Traps Triggered . | . . Indirectly . | . . Trap Hack Attempts . | . . Triggered . | . . Disarmed . | . . Reprogrammed . | . . Reused . | . . Traps Extracted . | . . Installed . | . . Triggered . | . . Machines | -11 -10 ---------- Run | Yrd Mat Machines Disabled . | . . Max in Single Turn . | . . Machines Repaired . | . . Machines Dismantled . | . . Machines Sabotaged . | . . Overloaded Fab Kills . | . . Hacking | -11 -10 --------- Run | Yrd Mat Machines Accessed 1 | . 1 Terminals 1 | . 1 Fabricators . | . . Repair Stations . | . . Recycling Units . | . . Scanalyzers . | . . Garrison Access . | . . Total Hacks 2 | . 2 Successful 1 | . 1 Failed 1 | . 1 Catastrophic . | . . Database Lockouts . | . . Manual . | . . Terminals 2 | . 2 Fabricators . | . . Repair Stations . | . . Recycling Units . | . . Scanalyzers . | . . Garrison Access . | . . Terminal Hacks 1 | . 1 Record 1 | . 1 Fabricator Hacks . | . . Repair Station Hacks . | . . Recycling Unit Hacks . | . . Scanalyzer . | . . Garrison Access Hacks . | . . Unauthorized Hacks . | . . Terminals . | . . Fabricators . | . . Repair Stations . | . . Recycling Units . | . . Scanalyzers . | . . Garrison Access . | . . Data Cores Recovered . | . . Used . | . . Hacking Detections 1 | . 1 Full Trace Events . | . . Feedback Events . | . . Feedback Blocked . | . . Robot Schematics Acquired . | . . Robots Built . | . . Authchips . | . . Time . | . . Total Robot Build Rating . | . . Part Schematics Acquired . | . . Parts Built . | . . Authchips . | . . Time . | . . Total Part Build Rating . | . . Part Studies Acquired . | . . Parts Repaired . | . . Time . | . . Parts Recycled . | . . Recycled Matter . | . . Retrieved Matter . | . . Retrieved Components . | . . Parts Scanalyzed . | . . Part Schematics Acquired . | . . Parts Damaged . | . . Bothacking | -11 -10 ------------ Run | Yrd Mat Used RIF Installer . | . . Robots Hacked . | . . Non-combat . | . . Combat . | . . Robot Hacks Applied . | . . Relay Couplers Released . | . . Fabnet Peak Effective % . | . . Robots Rewired . | . . Allies Hacked . | . . Hacks Repelled . | . . Allies | -11 -10 -------- Run | Yrd Mat Total Allies . | . . Largest Group . | . . Highest-Rated Group . | . . Highest-Rated Ally . | . . Total Orders . | . . Ally Attacks . | . . Total Damage . | . . Kills . | . . Allies Corrupted . | . . Allies Melted . | . . Intel | -11 -10 ------- Run | Yrd Mat Active Infowar (turns) 315 | 124 191 Terrain 315 | 124 191 Seismic 227 | 110 117 Robot Analysis Total . | . . Derelict Logs Recovered . | . . Drone Launches . | . . Drone Recoveries . | . . Exploration | -11 -10 ------------- Run | Yrd Mat Turns Passed 700 | 260 440 Spaces Moved 177 | 136 41 Core 1 | 1 . Treads . | . . Legs . | . . Wheels 176 | 135 41 Hover . | . . Flight . | . . Fastest Speed 50 | 50 80 Average Speed 79 | 79 80 Slowest Speed 80 | 80 80 Overloaded Moves . | . . Propulsion Burnouts . | . . Robots Hopped . | . . Potential Cave-ins 8 | . 8 Cave-ins Triggered 11 | . 11 Exploration Rate (%) 7 | 4 11 Regions Visited 1 Branch Regions . Pre-discovered Areas . | . . Known Exits Taken . | . . Unknown Exits Taken 1 | 1 . Scrap Searched . | . . Spaces Dug 14 | 2 12 Terrain Destroyed 16 | 4 12 Melee . | . . Projectile 16 | 4 12 AOE . | . . Terrain Rammed . | . . Walls Destroyed . | . . Machines Disabled . | . . Actions | -11 -10 --------- Run | Yrd Mat Total 634 | 223 411 Wait 353 | 3 350 Move 175 | 135 40 Hop . | . . Pick Up 24 | 24 . Fast Attach . | . . Attach 23 | 18 5 Detach 9 | 8 1 Swap . | . . Drop 13 | 12 1 Fire 36 | 23 13 Melee . | . . Ram . | . . Kick . | . . Crush . | . . Escape Stasis 1 | . 1 Rewire . | . . Trap . | . . Miscellaneous . | . . Route ------- -11/Scrapyard -10/Materials History --------- Turn | Location | Event 38 | -11/Scrapyard | Discovered new exit (range 14) 261 | -11/Scrapyard | Entered Materials 313 | -10/Materials | Build established: Mutant 347 | -10/Materials | Crushed by falling debris 378 | -10/Materials | Crushed by falling debris 378 | -10/Materials | System corruption reached 10% 409 | -10/Materials | Lost 6 parts (3n2u1w) 435 | -10/Materials | Crushed by falling debris 466 | -10/Materials | Crushed by falling debris 480 | -10/Materials | Crushed by falling debris 498 | -10/Materials | Crushed by falling debris 595 | -10/Materials | Crushed by falling debris 595 | -10/Materials | Core integrity fell below 50% 612 | -10/Materials | Crushed by falling debris 673 | -10/Materials | Crushed by falling debris 683 | -10/Materials | Crushed by falling debris 683 | -10/Materials | Core integrity fell below 20% 702 | -10/Materials | Crushed by falling debris 702 | -10/Materials | Smashed by cave-in Last Messages --------------- The unstable cave ceiling collapses. Crushed by falling debris. Wheel destroyed. System corrupted by crushing effect (+5). R1X:>JPPGTYSO>3>B U|DNVYWUBRQY| J0&5NOSNBA5M9E6U2F System corrupted: Heat flow error (+111). The unstable cave ceiling collapses. Crushed by falling debris. Assault Rifle destroyed. System corrupted by crushing effect (+2). Imp. Terrain Scanner destroyed. System corrupted by crushing effect (+2). The unstable cave ceiling collapses. Crushed by falling debris. Assault Rifle destroyed. System corrupted by crushing effect (+4). NOW8YYWPED